bitfinex-derivatives/quotes_ETHF0:USTF0_20250213
["timestamp","ask_amount","ask_price","bid_price","bid_amount"]
[1739456073772,3.2078,2636.2,2635.8,0.75867]
[1739456073982,3.2078,2636.6,2636.0,7.14433182]
[1739456074180,3.2078,2637.1,2636.4,3.2078]
[1739456074476,3.2078,2637.4,2636.6,3.93653182]
[1739456074675,0.75832,2637.1,2636.6,3.93653182]
[1739456074876,0.75832,2637.1,2636.6,4.69496182]
[1739456075083,3.21348861,2637.1,2636.6,0.00568861]
[1739456075272,3.21348861,2637.1,2636.6,3.94222043]
[1739456075579,3.21348861,2637.1,2636.7,5.7968]
[1739456075785,3.21348861,2637.1,2636.7,6.5552]
[1739456075980,3.21348861,2637.1,2636.7,5.7968]
[1739456076186,0.00568861,2637.1,2636.8,0.75837]
[1739456076381,0.00568861,2637.1,2636.6,0.00568861]
[1739456076589,0.00568861,2637.1,2636.6,3.94222043]
[1739456076884,0.00568861,2637.1,2636.7,3.9662]
[1739456077087,0.00568861,2637.1,2636.7,3.2078]
[1739456077382,0.00568861,2637.1,2637.0,3.2078]
[1739456077781,0.00568861,2637.1,2636.9,3.93653182]
[1739456078083,0.00568861,2637.1,2636.9,23.80153182]
[1739456078285,14.90589731,2637.8,2637.7,0.75812]
[1739456078598,14.90589731,2637.8,2637.7,7.27565182]
[1739456078891,14.90589731,2637.8,2637.7,10.48345182]
[1739456079091,0.26346777,2638.4,2637.7,16.00019381]
[1739456079294,3.2078,2638.6,2638.1,3.2078]
[1739456079493,0.00568861,2638.3,2638.0,2.583]
[1739456079690,0.00568861,2638.3,2638.1,40.8]
[1739456080395,0.00568861,2638.3,2638.0,2.583]
[1739456081293,0.00568861,2638.3,2638.0,3.34102]
[1739456081594,0.00568861,2638.3,2638.0,2.583]
[1739456081794,0.00568861,2638.3,2638.1,0.75799]
[1739456081991,0.00568861,2638.3,2638.0,3.34102]
[1739456082192,0.75799,2638.2,2638.0,2.583]
[1739456082398,0.75804,2638.0,2637.9,0.00568861]
[1739456083102,0.7581,2637.8,2636.7,0.75839]
[1739456083297,0.75828,2637.2,2636.7,0.75839]
[1739456083802,0.75831,2637.1,2636.6,3.96623]
[1739456083990,0.75827,2637.2,2636.5,22.426]
[1739456084196,3.2078,2637.3,2636.6,3.21348861]
[1739456084396,3.2078,2637.9,2637.0,3.2078]
[1739456084600,3.2078,2637.9,2637.0,7.14433182]
[1739456084899,0.75815,2637.7,2637.2,0.75825]
[1739456085301,0.75814,2637.7,2637.2,0.75825]
[1739456085489,3.2078,2637.9,2637.1,2.56]
[1739456085689,3.2078,2637.9,2637.1,3.31827]
[1739456085894,0.75814,2637.7,2637.2,0.75826]
[1739456086103,0.75814,2637.7,2637.1,2.56]
[1739456086300,0.75811,2637.8,2637.3,0.75823]
[1739456086501,3.2078,2637.9,2637.1,3.31827]
[1739456086701,3.2078,2637.5,2637.0,5.7538]
[1739456086897,3.2078,2637.5,2636.8,0.75836]
[1739456087101,0.75825,2637.3,2636.8,0.75835]
[1739456087306,3.2078,2637.5,2636.7,2.546]
[1739456087599,3.2078,2636.8,2636.6,0.00568861]
[1739456088202,0.75841,2636.7,2636.6,0.00568861]
[1739456088398,3.2078,2636.8,2636.6,0.00568861]
[1739456088399,3.9662,2636.8,2636.6,0.00568861]
[1739456088597,0.00568861,2637.0,2636.6,0.00568861]
[1739456088803,0.00568861,2637.0,2636.7,0.75839]
[1739456089298,0.76402861,2637.0,2636.6,0.76411861]
[1739456089505,0.00568861,2637.0,2636.6,0.00568861]
[1739456090008,0.75835,2636.9,2636.6,0.00568861]
[1739456090198,0.75839,2636.8,2636.6,0.00568861]
[1739456090395,0.00568861,2637.0,2636.6,0.00568861]
[1739456090396,0.75841,2636.7,2636.6,0.00568861]
[1739456091102,5.97708861,2637.0,2636.6,0.00568861]
[1739456091303,0.75839,2636.8,2636.6,0.00568861]
[1739456092009,0.75836,2636.9,2636.6,0.00568861]
[1739456092713,0.00568861,2637.0,2636.6,0.00568861]
[1739456093007,3.2078,2637.5,2637.4,0.75821]
[1739456093313,0.75804,2638.0,2637.6,0.75814]
[1739456093509,0.75807,2637.9,2637.5,3.96597]
[1739456093703,0.75805,2638.0,2637.6,44.76595]
[1739456094103,0.75807,2637.9,2637.6,44.0078]
[1739456094303,3.2078,2638.0,2637.3,3.2078]
[1739456094499,3.96585,2638.0,2637.3,3.2078]
[1739456094705,3.2078,2638.0,2637.7,0.75811]
[1739456095008,0.00568861,2638.1,2637.7,2.503]
[1739456095512,0.00568861,2638.1,2637.8,19.858]
[1739456096508,0.00568861,2638.1,2637.9,0.75804]
[1739456097104,0.00568861,2638.1,2638.0,0.75804]
[1739456097504,0.00568861,2638.1,2638.0,3.2078]
[1739456097707,0.00568861,2638.1,2638.0,8.3601291]
[1739456097910,0.00568861,2638.1,2638.0,3.96584]
[1739456098313,0.00568861,2638.1,2638.0,3.2078]
[1739456099814,0.00568861,2638.1,2638.0,3.96584]
[1739456100010,0.00568861,2638.1,2638.0,3.2078]
[1739456100512,0.00568861,2638.1,2638.0,3.96584]
[1739456100711,0.00568861,2638.1,2638.0,2.469]
[1739456101016,0.00568861,2638.1,2637.8,19.858]
[1739456101314,0.00568861,2638.1,2637.9,3.2078]
[1739456101507,0.00568861,2638.1,2638.0,41.55804]
[1739456101909,0.00568861,2638.1,2638.0,40.8]
[1739456102109,0.00568861,2638.1,2637.8,22.326]
[1739456102310,0.00568861,2638.1,2637.8,19.858]
[1739456102515,0.00568861,2638.1,2637.9,0.75805]
[1739456102709,0.00568861,2638.1,2638.0,3.96584]
[1739456103509,0.00568861,2638.1,2637.8,19.858]
[1739456103712,0.75806,2637.9,2637.8,19.858]
[1739456103905,0.00568861,2638.1,2637.8,19.858]
[1739456104112,0.75806,2637.9,2637.8,19.858]
[1739456104312,3.96586,2637.9,2637.8,19.858]
[1739456104911,3.96586,2637.9,2637.8,10.7777]
[1739456105107,3.96586,2637.9,2637.8,3.50619983]
[1739456105311,3.2078,2637.9,2637.0,2.47]
[1739456105509,3.2078,2637.3,2636.6,5.68248861]
[1739456105709,0.75827,2637.2,2636.8,0.75836]
[1739456105912,3.2078,2637.3,2636.6,5.68248861]
[1739456106110,3.2078,2636.9,2636.6,2.47468861]
[1739456106318,3.2078,2636.9,2636.6,0.00568861]
[1739456106614,3.2078,2636.9,2635.8,0.75866]
[1739456106913,3.2078,2636.3,2635.7,3.2078]
[1739456107223,0.7585,2636.4,2635.7,3.2078]
[1739456107404,0.75859,2636.1,2635.6,0.75872]
[1739456107716,3.2078,2636.3,2635.5,19.851]
[1739456107918,0.00568861,2636.1,2635.6,0.76439861]
[1739456108218,0.76426861,2636.1,2635.6,0.00568861]
[1739456108405,0.00568861,2636.1,2635.6,0.00568861]
[1739456108606,0.75866,2635.9,2635.6,0.00568861]
[1739456108910,0.00568861,2636.1,2635.6,0.00568861]
[1739456108911,3.2078,2636.0,2635.6,0.00568861]
[1739456109504,0.7587,2635.7,2635.6,0.00568861]
[1739456109707,3.9665,2635.7,2635.6,0.00568861]
[1739456109905,3.9665,2635.7,2634.6,2.462]
[1739456109906,9.2078,2635.7,2634.6,2.462]
[1739456110111,0.75893,2634.9,2634.5,19.855]
[1739456110316,0.75889,2635.1,2634.5,20.61402]
[1739456110507,3.2078,2635.2,2634.5,19.855]
[1739456110705,0.75892,2635.0,2634.5,20.61403]
[1739456110905,3.2078,2635.2,2634.5,19.855]
[1739456111109,3.2078,2635.2,2634.5,20.61403]
[1739456111311,3.2078,2635.2,2634.8,0.75893]
[1739456111711,3.2078,2635.2,2634.7,3.2078]
[1739456111913,3.2078,2635.2,2634.5,19.855]
[1739456112213,0.75895,2634.9,2634.5,19.855]
[1739456112525,3.2078,2635.2,2634.5,19.855]
[1739456112718,0.75901,2634.6,2634.5,19.855]
[1739456112920,3.2078,2634.7,2633.8,3.2078]
[1739456113116,0.75914,2634.2,2633.8,3.2078]
[1739456113516,0.00568861,2634.3,2633.8,3.2078]
[1739456114019,0.76479861,2634.3,2633.8,3.2078]
[1739456114214,0.00568861,2634.3,2633.8,3.2078]
[1739456114420,0.75922,2633.9,2633.6,40.8]
[1739456114609,3.2078,2633.9,2633.6,40.8]
[1739456114815,3.2078,2633.9,2633.5,19.86]
[1739456115016,0.75926,2633.8,2633.5,19.86]
[1739456115320,3.2078,2633.6,2632.7,3.2078]
[1739456115524,3.2078,2633.6,2632.1,19.865]
[1739456115525,0.75955,2632.8,2632.2,3.2078]
[1739456115721,3.2078,2633.4,2632.3,2.447]
[1739456115921,3.2078,2633.4,2632.2,3.2078]
[1739456116123,0.00568861,2633.1,2632.5,3.2078]
[1739456116315,0.00568861,2633.1,2632.3,2.444]
[1739456117021,3.2078,2632.9,2632.2,3.2078]
[1739456117227,3.2078,2632.9,2632.5,0.75962]
[1739456117422,3.96732,2632.9,2632.4,0.75964]
[1739456117722,3.96732,2632.9,2632.4,0.75965]
[1739456117723,3.96731,2632.9,2632.4,0.75965]
[1739456117919,3.2078,2632.9,2632.3,2.443]
[1739456118420,3.2078,2632.5,2631.2,7.6020891]
[1739456118625,5.10737,2631.8,2630.9,3.2078]
[1739456118823,3.2078,2631.5,2630.9,3.48846324]
[1739456119319,0.76562952,2631.5,2630.9,3.2078]
[1739456119514,0.00569952,2631.5,2630.9,3.2078]
[1739456119723,0.00569952,2631.5,2631.2,3.2078]
[1739456119917,0.00569952,2631.5,2631.4,0.75994]
[1739456120515,3.2078,2632.4,2631.2,7.6020891]
[1739456120714,10.4011,2632.6,2631.9,0.75977]
[1739456120921,10.4011,2632.6,2632.1,0.75972]
[1739456121231,3.2078,2633.1,2632.4,3.2078]
[1739456121526,3.2078,2632.8,2632.2,40.8]
[1739456121729,3.2078,2632.8,2632.5,0.00569952]
[1739456121914,0.75959,2632.6,2632.5,0.00569952]
[1739456122119,3.2078,2632.8,2632.5,0.00569952]
[1739456122528,0.00569952,2633.0,2632.5,0.00569952]
[1739456122727,3.2078,2632.8,2632.5,0.00569952]
[1739456123033,0.75959,2632.6,2632.5,0.00569952]
[1739456123518,3.2078,2632.8,2632.5,0.00569952]
[1739456123723,0.75959,2632.6,2632.5,0.00569952]
[1739456124127,6.75959,2632.6,2632.5,0.00569952]
[1739456124531,6.75959,2632.6,2632.5,9.52e-06]
[1739456124921,6.0,2632.6,2631.1,3.2078]
[1739456125117,6.8712891,2632.7,2630.7,3.2078]
[1739456125118,3.2078,2631.6,2630.7,3.2078]
[1739456125432,0.76006,2631.0,2630.7,3.2078]
[1739456125722,3.2078,2631.3,2630.7,3.2078]
[1739456125923,3.2078,2631.0,2630.4,3.2078]
[1739456126124,3.2078,2631.0,2630.0,5.7091]
[1739456126125,3.2078,2630.7,2630.0,3.2078]
[1739456126319,3.2078,2631.0,2630.0,3.2078]
[1739456126519,0.76018,2630.6,2630.0,3.28384562]
[1739456126819,3.2078,2631.0,2630.3,3.2078]
[1739456127216,3.2078,2631.0,2630.2,2.479]
[1739456127418,0.76021,2630.5,2630.2,2.479]
[1739456127623,0.76021,2630.5,2630.1,7.6020891]
[1739456128025,3.2078,2631.0,2630.1,3.2078]
[1739456128229,3.2078,2631.0,2630.0,0.07604562]
[1739456128230,3.2078,2630.4,2630.0,0.07604562]
[1739456128528,3.2078,2630.8,2630.0,40.87604562]
[1739456128721,3.2078,2630.8,2630.3,3.2078]
[1739456128917,3.2078,2631.1,2630.3,3.2078]
[1739456129223,0.00569952,2631.3,2631.0,3.2078]
[1739456129426,0.00569952,2631.3,2631.0,6.44383]
[1739456130030,0.00569952,2631.3,2631.0,3.2078]
[1739456130327,9.21349952,2631.3,2630.1,8.8147891]
[1739456130523,3.2078,2630.7,2630.1,4.4205]
[1739456130929,0.76017,2630.6,2630.1,7.6283]
[1739456131227,3.2078,2630.7,2629.8,3.2078]
[1739456131424,3.2078,2630.1,2629.6,22.372]
[1739456131623,3.2078,2630.1,2629.6,63.172]
[1739456131922,3.2078,2630.5,2629.8,3.2078]
[1739456132123,3.2078,2630.5,2629.7,4.3942891]
[1739456132322,3.2078,2630.2,2629.6,22.372]
[1739456132625,3.2078,2630.2,2629.6,19.894]
[1739456132924,0.76038,2629.9,2629.6,19.894]
[1739456133123,3.2078,2630.2,2629.6,19.894]
[1739456133630,1.90035,2630.7,2630.1,3.2078]
[1739456133631,0.76027,2630.3,2630.1,3.2078]
[1739456133824,0.76021,2630.5,2630.2,40.8]
[1739456134024,3.2078,2630.4,2629.7,6.0263]
[1739456134334,3.2078,2630.4,2629.6,19.894]
[1739456134335,3.2078,2630.1,2629.6,19.894]
[1739456134519,0.76043,2629.7,2629.6,19.894]
[1739456135033,3.2078,2630.1,2628.9,3.2078]
[1739456135034,3.2078,2629.8,2628.9,3.2078]
[1739456135326,3.2078,2629.1,2628.4,3.2078]
[1739456135526,3.2078,2629.4,2628.9,3.2078]
[1739456135834,3.2078,2629.4,2629.3,0.76054]
[1739456136032,0.00569952,2629.9,2629.3,3.2078]
[1739456136329,0.00569952,2629.9,2629.5,0.76047]
[1739456136523,0.00569952,2629.9,2629.2,2.504]
[1739456136724,0.00569952,2629.9,2629.8,0.7604]
[1739456136926,0.00569952,2629.9,2629.5,3.2078]
[1739456137126,0.76018,2630.6,2630.0,0.76033]
[1739456137331,8.9935,2630.9,2629.8,5.7098]
[1739456137527,3.2078,2630.2,2629.4,5.71649952]
[1739456137728,3.2078,2629.9,2629.4,0.00569952]
[1739456138133,3.2078,2630.0,2629.4,0.00569952]
[1739456138324,5.7138,2630.4,2629.5,3.2078]
[1739456138519,0.00569952,2629.9,2629.6,40.8]
[1739456138929,0.00569952,2629.9,2629.8,3.2078]
[1739456139122,0.00569952,2629.9,2629.8,3.9682]
[1739456139427,0.00569952,2629.9,2629.8,3.2078]
[1739456139728,0.00569952,2629.9,2629.6,40.8]
[1739456139928,0.00569952,2629.9,2629.5,2.509]
[1739456140129,0.00569952,2629.9,2629.8,3.2078]
[1739456140335,0.00569952,2629.9,2629.8,44.0078]
[1739456140545,0.00569952,2629.9,2629.8,3.2078]
[1739456140828,3.2078,2631.3,2629.8,9.2078]
[1739456141035,3.96778,2631.3,2630.7,0.76013]
[1739456141236,0.76002,2631.2,2630.6,3.2078]
[1739456141424,3.2078,2631.3,2630.6,3.2078]
[1739456141626,10.0792,2631.6,2630.9,0.76006]
[1739456141627,0.75993,2631.5,2630.9,0.76006]
[1739456141830,3.2078,2632.0,2631.2,3.2078]
[1739456142030,3.96754,2632.1,2631.2,3.2078]
[1739456142233,0.00569952,2631.9,2631.2,3.2078]
[1739456142434,0.00569952,2631.9,2631.8,0.75982]
[1739456142730,0.00569952,2631.9,2631.8,3.96762]
[1739456142936,0.00569952,2631.9,2631.8,3.2078]
[1739456144339,0.00569952,2631.9,2631.8,3.96762]
[1739456144526,0.00569952,2631.9,2631.8,3.2078]
[1739456145930,0.76548952,2631.9,2631.8,3.2078]
[1739456146139,0.00569952,2631.9,2631.8,3.2078]
[1739456146336,0.75982,2631.8,2631.7,2.49]
[1739456146531,0.08169024,2631.9,2631.5,19.906]
[1739456146732,0.84150024,2631.9,2631.5,19.906]
[1739456147037,0.08169024,2631.9,2631.8,0.75982]
[1739456147333,0.08169024,2631.9,2631.8,3.24182]
[1739456147931,0.08169024,2631.9,2631.8,2.482]
[1739456148131,0.75988,2631.6,2631.5,19.906]
[1739456148541,0.75983,2631.8,2631.5,19.906]
[1739456148736,0.08169024,2631.9,2631.5,19.906]
[1739456149044,0.08169024,2631.9,2631.6,3.2078]
[1739456149241,0.00569952,2631.9,2631.6,3.2078]
[1739456149448,0.00569952,2631.9,2631.5,19.906]
[1739456150031,0.00569952,2631.9,2630.6,5.841]
[1739456150032,3.2078,2631.8,2630.8,5.6818]
[1739456150340,0.00569952,2631.9,2631.1,3.2078]
[1739456150636,0.00569952,2631.9,2631.5,0.7599]
[1739456150845,0.76549952,2631.9,2631.5,2.483]
[1739456151235,3.21349952,2631.9,2631.5,2.483]
[1739456151435,0.75988,2631.6,2631.5,2.483]
[1739456151639,3.2078,2631.6,2630.9,10.2772]
[1739456151838,0.76005,2631.0,2630.7,3.21349952]
[1739456152039,0.76011,2630.8,2630.7,3.21349952]
[1739456152243,3.2078,2631.3,2630.7,3.21349952]
[1739456152536,0.7601,2630.9,2630.7,3.21349952]
[1739456152739,0.76006,2631.0,2630.7,3.21349952]
[1739456152933,0.76004,2631.1,2630.7,3.21349952]
[1739456153134,3.2078,2631.3,2630.7,3.21349952]
[1739456153135,0.76006,2631.0,2630.7,3.21349952]
[1739456153338,3.2078,2631.3,2630.7,3.21349952]
[1739456153545,0.75999,2631.3,2630.8,0.7601]
[1739456153746,3.2078,2631.7,2630.7,3.21349952]
[1739456153947,0.76005,2631.1,2630.7,3.21349952]
[1739456154245,1.8997,2631.6,2630.7,3.21349952]
[1739456154440,3.2078,2631.7,2630.7,3.21349952]
[1739456154441,3.96791,2630.8,2630.7,0.00569952]
[1739456154838,0.76011,2630.8,2630.7,0.00569952]
[1739456155248,3.2078,2631.2,2630.7,0.00569952]
[1739456155639,0.76009,2630.9,2630.7,0.00569952]
[1739456155944,0.76003,2631.1,2630.8,3.2078]
[1739456156141,3.2078,2631.7,2630.8,3.2078]
[1739456156348,3.2078,2631.7,2630.9,6.8642891]
[1739456156645,0.75986,2631.7,2631.4,3.2078]
[1739456157244,0.75985,2631.8,2631.4,3.2078]
[1739456157449,0.75986,2631.7,2631.4,3.2078]
[1739456157840,0.75991,2631.5,2631.4,3.2078]
[1739456158241,0.7599,2631.6,2631.4,3.2078]
[1739456158441,0.75985,2631.7,2631.4,3.2078]
[1739456158643,3.2078,2631.8,2631.4,44.0078]
[1739456158941,0.76550952,2631.9,2631.7,3.2078]
[1739456159252,0.00569952,2631.9,2631.7,3.2078]
[1739456159746,0.00569952,2631.9,2631.7,8.3619191]
[1739456160048,0.00569952,2631.9,2631.4,3.2078]
[1739456160249,0.75986,2631.7,2631.4,5.6608]
[1739456160445,0.00569952,2631.9,2631.5,0.75991]
[1739456160652,0.00569952,2631.9,2631.4,5.6608]
[1739456160947,0.00569952,2631.9,2631.7,3.2078]
[1739456161142,0.00569952,2631.9,2631.7,7.6020891]
[1739456161346,0.00569952,2631.9,2631.8,0.75982]
[1739456162048,3.2078,2633.0,2631.8,46.8]
[1739456162250,0.7596,2632.6,2632.3,3.2078]
[1739456162549,3.2078,2632.7,2632.1,6.8372891]
[1739456162849,3.2078,2632.7,2632.2,3.2078]
[1739456163052,10.6424,2633.3,2632.3,0.75965]
[1739456163053,0.75954,2632.8,2632.3,0.75965]
[1739456163343,0.75954,2632.8,2632.2,3.2078]
[1739456163344,0.00569952,2632.7,2632.5,3.2078]
[1739456163545,0.00569952,2632.7,2632.1,10.05078862]
[1739456163944,0.7596,2632.6,2632.1,10.81050862]
[1739456164147,0.75961,2632.6,2632.1,10.81050862]
[1739456164453,0.76527952,2632.7,2632.2,0.75969]
[1739456164651,0.00569952,2632.7,2632.1,10.05078862]
[1739456164858,0.00569952,2632.7,2632.5,3.2078]
[1739456165050,0.00569952,2632.7,2632.6,0.75959]
[1739456165249,0.00569952,2632.7,2632.1,6.84298862]
[1739456165448,0.75966,2632.4,2632.1,6.84298862]
[1739456165839,0.00569952,2632.7,2632.1,6.84298862]
[1739456166038,0.00569952,2632.7,2632.3,3.2078]
[1739456166245,0.00569952,2632.7,2632.6,3.2078]
[1739456166447,0.00569952,2632.7,2632.6,3.96739]
[1739456166745,3.2078,2633.7,2632.6,9.96739]
[1739456166947,0.75934,2633.5,2633.1,0.75944]
[1739456167248,0.7592,2634.0,2633.4,3.2078]
[1739456167444,13.1079,2634.1,2633.4,3.2078]
[1739456167748,3.2078,2634.5,2633.7,3.2078]
[1739456168045,0.76489952,2634.0,2633.7,3.2078]
[1739456168241,0.00569952,2634.0,2633.7,3.2078]
[1739456168442,0.00569952,2634.0,2633.5,0.00569952]
[1739456168641,0.75929,2633.7,2633.5,0.00569952]
[1739456168853,0.00569952,2634.0,2633.5,0.00569952]
[1739456169143,0.76489952,2634.0,2633.5,0.00569952]
[1739456169447,0.00569952,2634.0,2633.5,0.00569952]
[1739456170142,0.7593,2633.6,2633.5,0.00569952]
[1739456171341,3.96708,2633.7,2633.5,0.00569952]
[1739456171652,0.00569952,2634.0,2633.8,0.75924]
[1739456171952,0.00569952,2634.0,2633.5,0.00569952]
[1739456171953,0.00569952,2634.0,2633.7,0.75927]
[1739456172151,0.00569952,2634.0,2633.6,6.37908]
[1739456172453,0.00569952,2634.0,2633.6,5.6198]
[1739456172750,9.9001,2634.9,2633.9,3.96701]
[1739456173053,3.96654,2635.6,2635.1,0.75885]
[1739456173352,3.2078,2635.6,2634.9,4.3942891]
[1739456173543,0.75883,2635.3,2634.9,4.3942891]
[1739456173748,3.2078,2635.6,2634.9,4.3942891]
[1739456173949,0.7588,2635.4,2634.9,4.3942891]
[1739456174145,0.00569952,2635.4,2635.0,0.75888]
[1739456174341,0.00569952,2635.4,2634.8,3.21349952]
[1739456174649,0.75901,2634.7,2634.4,19.89]
[1739456174951,3.2078,2635.0,2634.5,4.3942891]
[1739456175254,0.00569952,2635.4,2634.5,4.3942891]
[1739456175255,0.00569952,2635.4,2634.9,7.6020891]
[1739456175449,0.00569952,2635.4,2635.2,3.2078]
[1739456175945,0.00569952,2635.4,2635.0,0.00569952]
[1739456176344,0.00569952,2635.4,2635.2,3.2078]
[1739456176557,3.2078,2635.3,2635.0,0.00569952]
[1739456176856,0.75887,2635.1,2635.0,0.00569952]
[1739456177055,0.75902,2634.6,2634.4,22.319]
[1739456177349,0.75904,2634.5,2634.4,19.89]
[1739456177744,3.2078,2635.0,2634.4,19.89]
[1739456177945,3.96684,2634.5,2634.4,19.89]
[1739456178153,3.96684,2634.5,2634.4,19.89569952]
[1739456178450,3.96684,2634.5,2634.4,0.00569952]
[1739456180249,7.9013,2635.1,2634.4,0.00569952]
[1739456180448,7.9013,2635.1,2634.4,3.21349952]
[1739456180449,4.6935,2635.1,2634.4,3.21349952]
[1739456180649,0.759,2634.7,2634.4,0.00569952]
[1739456180849,3.2078,2634.8,2634.4,0.00569952]
[1739456181054,3.96684,2634.5,2634.4,0.00569952]
[1739456182257,3.2078,2635.0,2634.4,0.00569952]
[1739456182455,3.2078,2635.0,2634.5,0.75903]
[1739456182854,3.2078,2635.0,2634.4,3.21349952]
[1739456183055,5.6685,2635.2,2634.5,1.89761]
[1739456183255,0.76448952,2635.4,2635.0,0.75889]
[1739456183457,0.75886,2635.2,2634.9,0.75891]
[1739456183764,0.00569952,2635.4,2635.1,3.2078]
[1739456184259,0.00569952,2635.4,2635.2,0.75882]
[1739456184555,0.00569952,2635.4,2635.1,3.2078]
[1739456185060,4.5474,2636.4,2635.5,0.75874]
[1739456185257,3.2078,2636.2,2635.5,2.403]
[1739456185452,0.75871,2635.7,2635.5,2.403]
[1739456185648,3.2078,2636.2,2635.5,2.403]
[1739456186459,3.2078,2636.2,2635.2,3.2078]
[1739456186460,3.2078,2635.9,2635.0,2.399]
[1739456186960,0.7588,2635.4,2635.0,2.399]
[1739456187360,3.2078,2635.6,2634.6,10.2496]
[1739456187558,3.96676,2634.8,2634.2,3.2078]
[1739456187955,0.75896,2634.8,2634.2,3.2078]
[1739456188156,3.96676,2634.8,2634.2,3.2078]
[1739456188552,0.75904,2634.5,2634.2,3.2078]
[1739456188759,3.2078,2634.5,2633.8,5.6008]
[1739456188959,2.393,2635.0,2634.1,3.2078]
[1739456188960,0.75901,2634.6,2634.1,3.2078]
[1739456189156,0.75904,2634.5,2634.1,3.2078]
[1739456189361,0.00569952,2634.7,2634.6,0.75901]
[1739456189560,3.2078,2635.1,2634.6,6.0]
[1739456189761,3.2078,2635.6,2634.9,7.6020891]
[1739456189957,3.2078,2635.6,2635.2,0.75882]
[1739456190156,1.8964,2636.2,2635.3,4.3942891]
[1739456190157,3.2078,2636.2,2635.3,4.3942891]
[1739456190358,4.6465,2636.3,2635.5,3.2078]
[1739456190657,3.2078,2636.2,2635.5,3.2078]
[1739456190864,3.21349952,2636.2,2635.5,3.2078]
[1739456191169,0.75868,2635.8,2635.5,3.2078]
[1739456191371,3.21349952,2636.2,2635.6,0.75871]
[1739456191671,0.75869,2635.8,2635.5,3.2078]
[1739456191870,0.00569952,2636.2,2635.5,3.2078]
[1739456192165,0.00569952,2636.2,2635.8,3.2078]
[1739456192477,0.75858,2636.1,2635.8,3.2078]
[1739456192661,0.00569952,2636.2,2635.8,3.2078]
[1739456193069,3.2078,2636.1,2635.7,0.00569952]
[1739456193569,0.75866,2635.9,2635.7,0.00569952]
[1739456193771,0.75864,2635.9,2635.7,0.00569952]
[1739456193961,0.00569952,2636.2,2635.8,3.2078]
[1739456194272,0.00569952,2636.2,2635.8,5.5828]
[1739456194770,0.00569952,2636.2,2636.1,3.96638]
[1739456194985,3.9662,2636.8,2636.1,3.96638]
[1739456194986,9.2279,2637.1,2636.1,7.6020891]
[1739456195183,0.75835,2637.0,2636.5,0.75846]
[1739456195484,0.75834,2637.0,2636.5,5.1527391]
[1739456195685,3.2078,2637.4,2636.6,0.75842]
[1739456195879,3.2078,2636.9,2636.5,4.3942891]
[1739456196179,3.2078,2637.0,2636.5,4.3942891]
[1739456196377,0.75849,2636.4,2636.2,19.872]
[1739456196571,0.0037262,2637.3,2636.3,2.369]
[1739456196572,3.2115262,2637.3,2636.3,2.369]
[1739456196785,0.75839,2636.8,2636.3,3.12751]
[1739456197177,0.0037262,2637.3,2636.5,3.2078]
[1739456197377,0.75836,2636.9,2636.5,3.2078]
[1739456197675,0.0037262,2637.3,2636.8,3.2078]
[1739456197985,0.0037262,2637.3,2636.9,2.366]
[1739456198176,0.0037262,2637.3,2637.1,3.2078]
[1739456198378,3.2115262,2637.3,2636.8,7.6020891]
[1739456198681,0.0037262,2637.3,2636.8,5.5718]
[1739456198880,0.0037262,2637.3,2636.8,9.9660891]
[1739456199080,0.0037262,2637.3,2636.8,6.7582891]
[1739456199393,0.0037262,2637.3,2637.2,8.3603491]
[1739456199577,0.27677216,2637.9,2637.2,7.6020891]
[1739456199778,0.75813,2637.7,2637.2,8.3603291]
[1739456199978,3.2078,2637.8,2637.2,7.6020891]
[1739456200179,0.75822,2637.4,2637.2,7.6020891]
[1739456200378,3.2078,2637.5,2636.9,3.2078]
[1739456200579,0.75829,2637.1,2637.0,2.361]
[1739456200782,5.10318,2637.6,2637.0,2.361]
[1739456201078,0.75825,2637.3,2637.0,2.361]
[1739456201379,3.2078,2637.6,2637.0,2.361]
[1739456201587,0.75829,2637.2,2637.0,2.361]
[1739456201886,0.75822,2637.4,2637.0,3.11931]
[1739456202081,0.75823,2637.4,2637.0,2.361]
[1739456202283,3.2078,2637.6,2637.0,2.361]
[1739456202687,0.75825,2637.3,2637.0,2.361]
[1739456202988,2.359,2638.2,2637.0,2.361]
[1739456202989,0.75829,2637.1,2637.0,2.361]
[1739456203984,3.2078,2637.4,2637.0,2.361]
[1739456204285,0.75832,2637.0,2636.9,0.00568839]
[1739456204484,3.96612,2637.0,2636.9,0.00568839]
[1739456204985,3.96612,2637.0,2636.9,8.39e-06]
[1739456205188,9.96612,2637.0,2636.9,8.39e-06]
[1739456205687,11.5488,2637.0,2635.7,5.7657]
[1739456205885,3.2078,2636.1,2635.6,3.96651]
[1739456206085,0.75861,2636.0,2635.8,0.75865]
[1739456206284,3.2078,2636.5,2635.8,0.75865]
[1739456206488,3.2078,2636.2,2635.3,3.2078]
[1739456206686,0.75872,2635.7,2635.3,5.5458]
[1739456206984,0.75872,2635.6,2635.5,0.00568839]
[1739456207179,3.96652,2635.6,2635.5,0.00568839]
[1739456208986,3.2078,2635.6,2635.5,0.00568839]
[1739456209695,3.96652,2635.6,2635.5,0.00568839]
[1739456210583,3.96652,2635.6,2635.5,8.39e-06]
[1739456210884,9.96652,2635.6,2635.5,8.39e-06]
[1739456212282,3.96652,2635.6,2635.5,8.39e-06]
[1739456215594,9.96652,2635.6,2635.5,8.39e-06]
[1739456216089,3.96652,2635.6,2635.5,8.39e-06]
[1739456216998,9.96652,2635.6,2635.5,8.39e-06]
[1739456217685,10.25472664,2635.6,2635.5,8.39e-06]
[1739456218495,10.31879276,2635.6,2635.5,8.39e-06]
[1739456218692,10.25472664,2635.6,2635.5,8.39e-06]
[1739456219693,0.75904,2634.5,2634.4,0.13806]
[1739456220592,1.89734,2634.9,2634.4,0.13806]